fUSD/lending_fUSD_20250923
["ID","MTS","AMOUNT","RATE_DAILY","PERIOD"]
[387234709,1758664252594,-400.0,0.00024657,3]
[387234710,1758664252604,-1036.13,0.00024657,3]
[387234711,1758664252613,-482.02,0.00024657,3]
[387234712,1758664252624,-160.0,0.00024657,14]
[387234713,1758664252634,-517.83,0.00024657,3]
[387234714,1758664252643,-160.0,0.00024657,14]
[387234715,1758664252652,-400.0,0.00024657,3]
[387234716,1758664252662,-160.0,0.00024657,14]
[387234717,1758664252671,-160.0,0.00024657,14]
[387234718,1758664252680,-160.0,0.00024657,14]
[387234719,1758664252690,-160.0,0.00024657,14]
[387234720,1758664252700,-160.0,0.00024657,14]
[387234721,1758664252709,-2362.16,0.00024657,3]
[387234722,1758664252719,-524.16,0.00024657,3]
[387234723,1758664252728,-400.0,0.00024657,3]
[387234724,1758664252737,-400.0,0.00024657,3]
[387234725,1758664252746,-3343.32,0.00024657,3]
[387234726,1758664252756,-400.0,0.00024657,3]
[387234727,1758664252765,-1564.43,0.00024657,3]
[387234728,1758664252774,-519.740166,0.00024657,7]
[387234729,1758664252784,-2055.82,0.00024657,3]
[387234730,1758664252794,-519.740166,0.00024657,7]
[387234731,1758664252803,-400.0,0.00024657,3]
[387234732,1758664252813,-400.0,0.00024657,3]
[387234733,1758664252822,-400.0,0.00024657,3]
[387234734,1758664252831,-519.740166,0.00024657,7]
[387234735,1758664252840,-400.0,0.00024657,3]
[387234736,1758664252850,-1774.73,0.00024657,3]
[387234737,1758664252860,-485.4,0.00024657,3]
[387234738,1758664252869,-2920.55,0.00024657,3]
[387234739,1758664252879,-400.0,0.00024657,3]
[387234740,1758664252888,-542.94,0.00024657,3]
[387234741,1758664252897,-519.740166,0.00024657,7]
[387234742,1758664252907,-400.0,0.00024657,3]
[387234743,1758664252916,-151.0,0.00024657,7]
[387234744,1758664252926,-400.0,0.00024657,3]
[387234745,1758664252935,-2733.93,0.00024657,3]
[387234746,1758664252944,-2377.65,0.00024657,3]
[387234747,1758664252953,-400.0,0.00024657,3]
[387234748,1758664252962,-2206.4,0.00024657,3]
[387234749,1758664252972,-400.0,0.00024657,3]
[387234750,1758664252981,-151.0,0.00024657,7]
[387234751,1758664252990,-400.0,0.00024657,3]
[387234752,1758664253000,-160.0,0.00024657,14]
[387234753,1758664253009,-400.0,0.00024657,3]
[387234754,1758664253018,-4398.6,0.00024657,3]
[387234755,1758664253028,-1866.28,0.00024657,3]
[387234756,1758664253037,-400.0,0.00024657,3]
[387234757,1758664253047,-151.0,0.00024657,7]
[387234758,1758664253056,-400.0,0.00024657,3]
[387234759,1758664253065,-841.18,0.00024657,3]
[387234760,1758664253074,-491.17,0.00024657,3]
[387234761,1758664253084,-402.35507577,0.00024657,3]
[387234762,1758664253093,-1493.5,0.00024657,3]
[387234763,1758664253103,-441.23,0.00024657,3]
[387234764,1758664253113,-151.0,0.00024657,7]
[387234765,1758664253122,-872.02,0.00024657,3]
[387234766,1758664253131,-400.0,0.00024657,3]
[387234767,1758664253141,-400.0,0.00024657,3]
[387234768,1758664253150,-566.5,0.00024657,3]
[387234769,1758664253159,-407.72724813,0.00024657,3]
[387234770,1758664253169,-400.0,0.00024657,3]
[387234771,1758664253178,-151.0,0.00024657,7]
[387234772,1758664253187,-151.0,0.00024657,7]
[387234773,1758664253197,-151.0,0.00024657,7]
[387234774,1758664253206,-400.0,0.00024657,3]
[387234775,1758664253216,-1970.71,0.00024657,3]
[387234776,1758664253225,-400.0,0.00024657,3]
[387234777,1758664253235,-1923.86,0.00024657,3]
[387234778,1758664253244,-1182.93,0.00024657,3]
[387234779,1758664253254,-3675.81,0.00024657,3]
[387234780,1758664253264,-400.0,0.00024657,3]
[387234781,1758664253273,-469.2,0.00024657,3]
[387234782,1758664253282,-151.0,0.00024657,7]
[387234783,1758664253291,-400.0,0.00024657,3]
[387234784,1758664253300,-660.51,0.00024657,3]
[387234785,1758664253309,-400.0,0.00024657,3]
[387234786,1758664253318,-1466.11,0.00024657,3]
[387234787,1758664253328,-151.0,0.00024657,7]
[387234788,1758664253337,-535.19,0.00024657,3]
[387234789,1758664253347,-515.64,0.00024657,3]
[387234790,1758664253358,-770.57,0.00024657,3]
[387234791,1758664253368,-788.86,0.00024657,3]
[387234792,1758664253377,-400.0,0.00024657,3]
[387234793,1758664253386,-400.0,0.00024657,3]
[387234794,1758664253395,-493.51,0.00024657,3]
[387234795,1758664253405,-12445.83,0.00024657,3]
[387234796,1758664253414,-3103.88,0.00024657,3]
[387234797,1758664253424,-681.58,0.00024657,3]
[387234798,1758664253434,-400.0,0.00024657,3]
[387234799,1758664253443,-400.0,0.00024657,3]
[387234800,1758664253453,-400.0,0.00024657,3]
[387234801,1758664253462,-1801.89,0.00024657,3]
[387234802,1758664253471,-2705.96,0.00024657,3]
[387234803,1758664253481,-1593.87,0.00024657,3]
[387234804,1758664253491,-400.0,0.00024657,3]
[387234805,1758664253500,-1375.02,0.00024657,3]
[387234806,1758664253510,-1657.6,0.00024657,3]
[387234807,1758664253519,-422.39,0.00024657,3]
[387234808,1758664253528,-408.296535,0.00024657,7]
[387234809,1758664253538,-4394.25,0.00024657,3]
[387234810,1758664253547,-400.0,0.00024657,3]
[387234811,1758664253557,-1354.9,0.00024657,3]
[387234812,1758664253567,-400.0,0.00024657,3]
[387234813,1758664253576,-408.296535,0.00024657,7]
[387234814,1758664253585,-477.48,0.00024657,3]
[387234815,1758664253594,-391.996383,0.00024657,7]
[387234816,1758664253604,-483.59,0.00024657,3]
[387234817,1758664253613,-400.0,0.00024657,3]
[387234818,1758664253624,-2718.14,0.00024657,3]
[387234819,1758664253634,-391.996383,0.00024657,7]
[387234820,1758664253643,-400.0,0.00024657,3]
[387234821,1758664253653,-1525.42,0.00024657,3]
[387234822,1758664253662,-506.66,0.00024657,3]
[387234823,1758664253672,-391.996383,0.00024657,7]
[387234824,1758664253682,-409.33967049,0.00024657,3]
[387234825,1758664253691,-400.0,0.00024657,3]
[387234826,1758664253701,-400.0,0.00024657,3]
[387234827,1758664253711,-400.0,0.00024657,3]
[387234828,1758664253720,-400.0,0.00024657,3]
[387234829,1758664253730,-391.996383,0.00024657,7]
[387234830,1758664253740,-400.0,0.00024657,3]
[387234831,1758664253749,-151.0,0.00024657,7]
[387234832,1758664253759,-1594.41,0.00024657,3]
[387234833,1758664253768,-616.12,0.00024657,3]
[387234834,1758664253777,-400.0,0.00024657,3]
[387234835,1758664253787,-400.0,0.00024657,3]
[387234836,1758664253796,-8925.42,0.00024657,3]
[387234837,1758664253806,-3295.49,0.00024657,3]
[387234838,1758664253815,-1328.48,0.00024657,3]
[387234839,1758664253825,-537.74,0.00024657,3]
[387234840,1758664253835,-1080.71,0.00024657,3]
[387234841,1758664253845,-1946.95,0.00024657,3]
[387234842,1758664253855,-693.58,0.00024657,3]
[387234843,1758664253865,-778.13,0.00024657,3]
[387234844,1758664253875,-6607.03,0.00024657,3]
[387234845,1758664253884,-400.0,0.00024657,3]
[387234846,1758664253894,-1718.13,0.00024657,3]
[387234847,1758664253903,-1594.83,0.00024657,3]
[387234848,1758664253914,-487.88,0.00024657,3]
[387234849,1758664253923,-2770.64,0.00024657,3]
[387234850,1758664253933,-400.0,0.00024657,3]
[387234851,1758664253942,-720.33,0.00024657,3]
[387234852,1758664253951,-1583.84,0.00024657,3]
[387234853,1758664253961,-2011.79,0.00024657,3]
[387234854,1758664253970,-400.0,0.00024657,3]
[387234855,1758664253980,-3077.98,0.00024657,3]
[387234856,1758664253989,-1145.93,0.00024657,3]
[387234857,1758664253999,-560.56,0.00024657,3]
[387234858,1758664254009,-2609.15,0.00024657,3]
[387234859,1758664254019,-400.0,0.00024657,3]
[387234860,1758664254028,-1532.57,0.00024657,3]
[387234861,1758664254037,-1601.89,0.00024657,3]
[387234862,1758664254047,-151.0,0.00024657,7]
[387234863,1758664254057,-470.81,0.00024657,3]
[387234864,1758664254066,-736.9,0.00024657,3]
[387234865,1758664254075,-682.28,0.00024657,3]
[387234866,1758664254084,-473.85,0.00024657,3]
[387234867,1758664254094,-400.0,0.00024657,3]
[387234868,1758664254104,-1854.54,0.00024657,3]
[387234869,1758664254113,-151.0,0.00024657,7]
[387234870,1758664254122,-400.0,0.00024657,3]
[387234871,1758664254132,-444.2,0.00024657,3]
[387234872,1758664254141,-151.0,0.00024657,7]
[387234873,1758664254150,-1424.75,0.00024657,3]
[387234874,1758664254159,-400.0,0.00024657,3]
[387234875,1758664254169,-667.22,0.00024657,3]
[387234876,1758664254178,-400.0,0.00024657,3]
[387234877,1758664254535,-7260.11,0.00024657,3]
[387234878,1758664254545,-400.0,0.00024657,3]
[387234879,1758664254555,-400.0,0.00024657,3]
[387234880,1758664254565,-1011.39,0.00024657,3]
[387234881,1758664254574,-814.88,0.00024657,3]
[387234882,1758664254584,-151.0,0.00024657,7]
[387234883,1758664254593,-746.48,0.00024657,3]
[387234884,1758664254602,-500.0,0.00024657,3]
[387234885,1758664254611,-500.0,0.00024657,3]
[387234886,1758664254621,-500.0,0.00024657,3]
[387234887,1758664254631,-500.0,0.00024657,3]
[387234888,1758664254640,-333.226514,0.00024657,7]
[387234889,1758664254649,-296.63777,0.00024657,7]
[387234890,1758664254660,-400.0,0.00024657,3]
[387234891,1758664254669,-333.226514,0.00024657,7]
[387234892,1758664254678,-2063.59,0.00024657,3]
[387234893,1758664254687,-1086.66,0.00024657,3]
[387234894,1758664254696,-333.226514,0.00024657,7]
[387234895,1758664254706,-821.38,0.00024657,3]
[387234896,1758664254716,-400.0,0.00024657,3]
[387234897,1758664254725,-400.0,0.00024657,3]
[387234898,1758664254735,-1885.78,0.00024657,3]
[387234899,1758664254744,-333.226514,0.00024657,7]
[387234900,1758664254754,-400.0,0.00024657,3]
[387234901,1758664254764,-1320.39,0.00024657,3]
[387234902,1758664254773,-400.0,0.00024657,3]
[387234903,1758664254782,-400.0,0.00024657,3]
[387234904,1758664254792,-400.0,0.00024657,3]
[387234905,1758664254801,-1989.15,0.00024657,3]
[387234906,1758664254810,-400.0,0.00024657,3]
[387234907,1758664254819,-403.83,0.00024657,3]
[387234908,1758664254829,-400.0,0.00024657,3]
[387234909,1758664254838,-400.0,0.00024657,3]
[387234910,1758664254848,-151.0,0.00024657,7]
[387234911,1758664254858,-2081.852997,0.00024657,7]
[387234912,1758664254867,-400.0,0.00024657,3]
[387234913,1758664254877,-400.0,0.00024657,3]
[387234914,1758664254887,-162.934578,0.00024657,7]
[387234915,1758664254897,-2081.852997,0.00024657,7]
[387234916,1758664254906,-263.23311,0.00024657,7]
[387234917,1758664254916,-400.0,0.00024657,3]
[387234918,1758664254925,-723.28,0.00024657,3]
[387234919,1758664254935,-1721.72,0.00024657,3]
[387234920,1758664254945,-2702.29,0.00024657,3]
[387234921,1758664254955,-400.0,0.00024657,3]
[387234922,1758664254964,-151.0,0.00024657,7]
[387234923,1758664254974,-2081.852997,0.00024657,7]
[387234924,1758664254983,-263.23311,0.00024657,7]
[387234925,1758664254993,-561.18,0.00024657,3]
[387234926,1758664255003,-1260.0,0.00024657,3]
[387234927,1758664255013,-1620.58,0.00024657,3]
[387234928,1758664255022,-400.0,0.00024657,3]
[387234929,1758664255032,-2081.852997,0.00024657,7]
[387234930,1758664255043,-3598.37,0.00024657,3]
[387234931,1758664255052,-151.0,0.00024657,7]
[387234932,1758664255061,-263.23311,0.00024657,7]
[387234933,1758664255071,-151.0,0.00024657,7]
[387234934,1758664255080,-400.0,0.00024657,3]
[387234935,1758664255089,-502.26,0.00024657,3]
[387234936,1758664255099,-400.0,0.00024657,3]
[387234937,1758664255109,-1474.59,0.00024657,3]
[387234938,1758664255118,-400.0,0.00024657,3]
[387234939,1758664255128,-263.23311,0.00024657,7]
[387234940,1758664255137,-151.0,0.00024657,7]
[387234941,1758664255147,-506.33,0.00024657,3]
[387234942,1758664255157,-400.0,0.00024657,3]
[387234943,1758664255167,-400.0,0.00024657,3]
[387234944,1758664255176,-400.0,0.00024657,3]
[387234945,1758664255186,-151.0,0.00024657,7]
[387234946,1758664255195,-411.93738062,0.00024657,3]
[387234947,1758664255206,-1424.01,0.00024657,3]
[387234948,1758664255216,-1420.11,0.00024657,3]
[387234949,1758664255225,-670.32,0.00024657,3]
[387234950,1758664255234,-1056.56,0.00024657,3]
[387234951,1758664255244,-400.0,0.00024657,3]
[387234952,1758664255253,-2954.78,0.00024657,3]
[387234953,1758664255263,-151.0,0.00024657,7]
[387234954,1758664255272,-151.0,0.00024657,7]
[387234955,1758664255281,-1331.6,0.00024657,3]
[387234956,1758664255291,-1563.82,0.00024657,3]
[387234957,1758664255301,-1966.97,0.00024657,3]
[387234958,1758664255311,-400.0,0.00024657,3]
[387234959,1758664255321,-4579.98,0.00024657,3]
[387234960,1758664255331,-1062.51,0.00024657,3]
[387234961,1758664255340,-749.44,0.00024657,3]
[387234962,1758664255350,-760.02,0.00024657,3]
[387234963,1758664255369,-400.0,0.00024657,3]
[387234964,1758664255381,-1527.26,0.00024657,3]
[387234965,1758664255390,-400.0,0.00024657,3]
[387234966,1758664255400,-400.0,0.00024657,3]
[387234967,1758664255410,-400.0,0.00024657,3]
[387234968,1758664255419,-655.81,0.00024657,3]
[387234969,1758664255429,-3361.37,0.00024657,3]
[387234970,1758664255438,-691.42,0.00024657,3]
[387234971,1758664255447,-152.039803,0.00024657,7]
[387234972,1758664255457,-1798.01,0.00024657,3]
[387234973,1758664255467,-500.0,0.00024657,3]
[387234974,1758664255476,-500.0,0.00024657,3]
[387234975,1758664255486,-500.0,0.00024657,3]
[387234976,1758664255495,-152.039803,0.00024657,7]
[387234977,1758664255504,-1342.02,0.00024657,3]
[387234978,1758664255514,-400.0,0.00024657,3]
[387234979,1758664255524,-400.0,0.00024657,3]
[387234980,1758664255534,-400.0,0.00024657,3]
[387234981,1758664255543,-2944.68,0.00024657,3]
[387234982,1758664255553,-152.039803,0.00024657,7]
[387234983,1758664255562,-11455.47,0.00024657,3]
[387234984,1758664255572,-588.0,0.00024657,3]
[387234985,1758664255582,-402.25969341,0.00024657,3]
[387234986,1758664255591,-400.0,0.00024657,3]
[387234987,1758664255601,-2353.38,0.00024657,3]
[387234988,1758664255610,-152.039803,0.00024657,7]
[387234989,1758664255620,-525.78964628,0.00024657,3]
[387234990,1758664255630,-426.64,0.00024657,3]
[387234991,1758664255639,-151.0,0.00024657,7]
[387234992,1758664255649,-891.93,0.00024657,3]
[387234993,1758664255659,-8056.28,0.00024657,3]
[387234994,1758664255668,-836.0,0.00024657,3]
[387234995,1758664255678,-415.62708607,0.00024657,3]
[387234996,1758664255687,-400.0,0.00024657,3]
[387234997,1758664255696,-151.0,0.00024657,7]
[387234998,1758664255705,-400.0,0.00024657,3]
[387234999,1758664255715,-400.0,0.00024657,3]
[387235000,1758664255724,-2297.98,0.00024657,3]
[387235001,1758664255733,-430.82,0.00024657,3]
[387235002,1758664255743,-557.1,0.00024657,3]
[387235003,1758664255752,-2148.78,0.00024657,3]
[387235004,1758664255761,-400.0,0.00024657,3]
[387235005,1758664255771,-984.5,0.00024657,3]
[387235006,1758664255780,-400.0,0.00024657,3]
[387235007,1758664255789,-1898.09,0.00024657,3]
[387235008,1758664255799,-400.0,0.00024657,3]
[387235009,1758664255808,-2196.12,0.00024657,3]
[387235010,1758664255817,-1974.89,0.00024657,3]
[387235011,1758664255827,-400.0,0.00024657,3]
[387235012,1758664255836,-400.0,0.00024657,3]
[387235013,1758664255846,-1120.22,0.00024657,3]
[387235014,1758664255855,-1488.78,0.00024657,3]
[387235015,1758664255865,-400.0,0.00024657,3]
[387235016,1758664255874,-2673.31,0.00024657,3]
[387235017,1758664255884,-400.0,0.00024657,3]
[387235018,1758664255894,-1720.08,0.00024657,3]
[387235019,1758664255904,-403.19,0.00024657,3]
[387235020,1758664255913,-1160.52,0.00024657,3]
[387235021,1758664255923,-400.0,0.00024657,3]
[387235022,1758664255933,-400.0,0.00024657,3]
[387235023,1758664255942,-400.0,0.00024657,3]
[387235024,1758664255952,-4427.59,0.00024657,3]
[387235025,1758664255961,-543.91,0.00024657,3]
[387235026,1758664255971,-570.83,0.00024657,3]
[387235027,1758664255981,-736.09,0.00024657,3]
[387235028,1758664255990,-151.0,0.00024657,7]
[387235029,1758664256000,-509.42,0.00024657,3]
[387235030,1758664256010,-1729.78,0.00024657,3]
[387235031,1758664256019,-858.26,0.00024657,3]
[387235032,1758664256028,-151.0,0.00024657,7]
[387235033,1758664256038,-2115.52,0.00024657,3]
[387235034,1758664256048,-400.0,0.00024657,3]
[387235035,1758664256058,-1946.73,0.00024657,3]
[387235036,1758664256068,-151.0,0.00024657,7]
[387235037,1758664256077,-400.0,0.00024657,3]
[387235038,1758664256087,-523.04,0.00024657,3]
[387235039,1758664256096,-590.58,0.00024657,3]
[387235040,1758664256106,-2168.16,0.00024657,3]
[387235041,1758664256116,-1479.38,0.00024657,3]
[387235042,1758664256126,-400.0,0.00024657,3]
[387235043,1758664256135,-3204.79,0.00024657,3]
[387235044,1758664256145,-1290.76,0.00024657,3]
[387235045,1758664256154,-151.0,0.00024657,7]
[387235046,1758664256164,-400.0,0.00024657,3]
[387235047,1758664256173,-1323.54,0.00024657,3]
[387235048,1758664256183,-466.33,0.00024657,3]
[387235049,1758664256192,-151.0,0.00024657,7]
[387235050,1758664256202,-400.0,0.00024657,3]
[387235051,1758664256211,-727.07,0.00024657,3]
[387235052,1758664256221,-633.05,0.00024657,3]
[387235053,1758664256231,-473.77610046,0.00024657,3]
[387235054,1758664256241,-413.88,0.00024657,3]
[387235055,1758664256250,-400.0,0.00024657,3]
[387235056,1758664256259,-400.0,0.00024657,3]
[387235057,1758664256269,-151.0,0.00024657,7]
[387235058,1758664256279,-505.54,0.00024657,3]
[387235059,1758664256288,-400.0,0.00024657,3]
[387235060,1758664256298,-1000.0,0.00024657,3]
[387235061,1758664256308,-2523.28,0.00024657,3]
[387235062,1758664256318,-400.0,0.00024657,3]
[387235063,1758664256328,-654.93,0.00024657,3]
[387235064,1758664256338,-760.67,0.00024657,3]
[387235065,1758664256347,-562.75,0.00024657,3]
[387235066,1758664256361,-400.0,0.00024657,3]
[387235067,1758664256370,-1733.39,0.00024657,3]
[387235068,1758664256380,-2310.41,0.00024657,3]
[387235069,1758664256390,-400.0,0.00024657,3]
[387235070,1758664256400,-151.0,0.00024657,7]
[387235071,1758664256410,-2604.18,0.00024657,3]
[387235072,1758664256420,-400.0,0.00024657,3]
[387235073,1758664256430,-151.0,0.00024657,7]
[387235074,1758664256439,-151.0,0.00024657,7]
[387235075,1758664256450,-151.0,0.00024657,7]
[387235076,1758664256461,-400.0,0.00024657,3]
[387235077,1758664256471,-400.0,0.00024657,3]
[387235078,1758664256481,-212.266745,0.00024657,7]
[387235079,1758664256490,-551.29,0.00024657,3]
[387235080,1758664256501,-1966.27,0.00024657,3]
[387235081,1758664256511,-151.0,0.00024657,7]
[387235082,1758664256520,-1174.67,0.00024657,3]
[387235083,1758664256530,-400.0,0.00024657,3]
[387235084,1758664256540,-400.0,0.00024657,3]
[387235085,1758664256550,-151.0,0.00024657,7]
[387235086,1758664256560,-2276.88,0.00024657,3]
[387235087,1758664256569,-715.33,0.00024657,3]
[387235088,1758664256579,-715.33,0.00024657,3]
[387235089,1758664256589,-400.0,0.00024657,3]
[387235090,1758664256598,-400.0,0.00024657,3]
[387235091,1758664256608,-401.18792287,0.00024657,3]
[387235092,1758664256618,-715.33,0.00024657,3]
[387235093,1758664256627,-2647.87,0.00024657,3]
[387235094,1758664256637,-151.0,0.00024657,7]
[387235095,1758664256646,-715.33,0.00024657,3]
[387235096,1758664256655,-151.0,0.00024657,7]
[387235097,1758664256665,-421.49,0.00024657,3]
[387235098,1758664256674,-234.35835262,0.00024657,3]
[387235099,1758664256683,-400.0,0.00024657,3]
[387235100,1758664256692,-151.0,0.00024657,7]
[387235101,1758664256702,-706.26,0.00024657,3]
[387235102,1758664256712,-715.33,0.00024657,3]
[387235103,1758664256721,-3628.11,0.00024657,3]
[387235104,1758664256730,-400.0,0.00024657,2]
[387235105,1758664256740,-715.33,0.00024657,3]
[387235106,1758664256749,-565.31,0.00024657,3]
[387235107,1758664256759,-1829.63,0.00024657,3]
[387235108,1758664256768,-715.33,0.00024657,3]
[387235109,1758664256778,-405.54902379,0.00024657,3]
[387235110,1758664256787,-715.33,0.00024657,3]
[387235111,1758664256797,-500.0,0.00024657,3]
[387235112,1758664256806,-715.33,0.00024657,3]
[387235113,1758664256816,-715.33,0.00024657,3]
[387235114,1758664256825,-500.0,0.00024657,3]
[387235115,1758664256835,-524.46545581,0.00024657,3]
[387235116,1758664256844,-3130.39,0.00024657,3]
[387235117,1758664256853,-715.33,0.00024657,3]
[387235118,1758664256862,-400.0,0.00024657,3]
[387235119,1758664256987,-500.0,0.00024657,3]
[387235120,1758664256996,-391.57593784,0.00024657,3]
[387235121,1758664257005,-1595.55,0.00024657,3]
[387235122,1758664257014,-2516.63,0.00024657,3]
[387235123,1758664257024,-400.0,0.00024657,3]
[387235124,1758664257033,-400.0,0.00024657,3]
[387235125,1758664257042,-151.0,0.00024657,7]
[387235126,1758664257051,-400.0,0.00024657,3]
[387235127,1758664257061,-1399.27,0.00024657,3]
[387235128,1758664257070,-400.0,0.00024657,3]
[387235129,1758664257080,-400.0,0.00024657,3]
[387235130,1758664257089,-400.0,0.00024657,3]
[387235131,1758664257099,-400.0,0.00024657,3]
[387235132,1758664257108,-1323.37,0.00024657,3]
[387235133,1758664257118,-4362.99,0.00024657,3]
[387235134,1758664257127,-2557.76,0.00024657,3]
[387235135,1758664257137,-2164.69,0.00024657,3]
[387235136,1758664257147,-400.0,0.00024657,3]
[387235137,1758664257156,-410.88,0.00024657,3]
[387235138,1758664257164,-400.0,0.00024657,3]
[387235139,1758664257173,-554.53,0.00024657,3]
[387235140,1758664257181,-2696.65,0.00024657,3]
[387235141,1758664257190,-2080.13,0.00024657,3]
[387235142,1758664257199,-400.0,0.00024657,3]
[387235143,1758664257208,-436.41,0.00024657,3]
[387235144,1758664257217,-400.0,0.00024657,3]
[387235145,1758664257226,-1822.61,0.00024657,3]
[387235146,1758664257235,-403.12563498,0.00024657,3]
[387235147,1758664257245,-3272.4,0.00024657,3]
[387235148,1758664257254,-7563.58,0.00024657,3]
[387235149,1758664257263,-2668.58,0.00024657,3]
[387235150,1758664257271,-400.0,0.00024657,3]
[387235151,1758664257281,-2197.93,0.00024657,3]
[387235152,1758664257291,-1439.94,0.00024657,3]
[387235153,1758664257300,-400.0,0.00024657,3]
[387235154,1758664257309,-1694.56,0.00024657,3]
[387235155,1758664257318,-400.0,0.00024657,3]
[387235156,1758664257327,-400.0,0.00024657,3]
[387235157,1758664257337,-547.88,0.00024657,3]
[387235158,1758664257346,-2360.32,0.00024657,3]
[387235159,1758664257357,-2254.46,0.00024657,3]
[387235160,1758664257367,-877.79,0.00024657,3]
[387235161,1758664257376,-439.37,0.00024657,3]
[387235162,1758664257385,-413.35,0.00024657,3]
[387235163,1758664257395,-587.39,0.00024657,3]
[387235164,1758664257404,-400.0,0.00024657,3]
[387235165,1758664257413,-400.0,0.00024657,3]
[387235166,1758664257422,-400.0,0.00024657,3]
[387235167,1758664257431,-400.0,0.00024657,3]
[387235168,1758664257440,-400.0,0.00024657,3]
[387235169,1758664257449,-400.0,0.00024657,3]
[387235170,1758664257458,-1910.92,0.00024657,3]
[387235171,1758664257467,-4896.65,0.00024657,3]
[387235172,1758664257476,-400.0,0.00024657,3]
[387235173,1758664257486,-400.0,0.00024657,3]
[387235174,1758664257495,-2495.95,0.00024657,3]
[387235175,1758664257504,-2031.07,0.00024657,3]
[387235176,1758664257513,-784.22,0.00024657,3]
[387235177,1758664257523,-400.0,0.00024657,3]
[387235178,1758664257531,-791.36,0.00024657,3]
[387235179,1758664257541,-1175.49,0.00024657,3]
[387235180,1758664257550,-2758.07,0.00024657,3]
[387235181,1758664257559,-400.0,0.00024657,3]
[387235182,1758664257568,-400.0,0.00024657,3]
[387235183,1758664257578,-559.88,0.00024657,3]
[387235184,1758664257587,-976.72,0.00024657,3]
[387235185,1758664257596,-626.61,0.00024657,3]
[387235186,1758664257605,-1207.96,0.00024657,3]
[387235187,1758664257614,-400.0,0.00024657,3]
[387235188,1758664257624,-403.27856183,0.00024657,3]
[387235189,1758664257632,-500.0,0.00024657,3]
[387235190,1758664257641,-500.0,0.00024657,3]
[387235191,1758664257650,-151.0,0.00024657,7]
[387235192,1758664257659,-400.0,0.00024657,3]
[387235193,1758664257669,-5837.31,0.00024657,2]
[387235194,1758664257678,-400.0,0.00024657,3]
[387235195,1758664257687,-5837.31,0.00024657,2]
[387235196,1758664257695,-400.0,0.00024657,3]
[387235197,1758664257704,-5837.31,0.00024657,2]
[387235198,1758664257713,-5837.31,0.00024657,2]
[387235199,1758664257722,-1595.32,0.00024657,3]
[387235200,1758664257731,-1890.53,0.00024657,3]
[387235201,1758664257741,-5837.31,0.00024657,2]
[387235202,1758664257750,-1205.82,0.00024657,3]
[387235203,1758664257759,-1001.970278,0.00024657,7]
[387235204,1758664257768,-400.0,0.00024657,3]
[387235205,1758664257777,-5837.31,0.00024657,2]
[387235206,1758664257786,-1169.14,0.00024657,3]
[387235207,1758664257795,-5837.31,0.00024657,2]
[387235208,1758664257804,-5837.31,0.00024657,2]